bitfinex-derivatives/quotes_SOLF0:USTF0_20251002
["timestamp","ask_amount","ask_price","bid_price","bid_amount"]
[1759402421647,3.12919865,225.25,225.24,7.2]
[1759402422242,7.68,225.31,225.25,11.1935]
[1759402422549,7.68,225.29,225.26,7.2]
[1759402422748,11.91824144,225.28,225.25,11.1935]
[1759402422954,3.12896654,225.27,225.25,11.1935]
[1759402423249,1.10924179,225.31,225.25,11.1935]
[1759402423547,9.54483103,225.3,225.25,7.2]
[1759402423738,7.68,225.28,225.25,7.2]
[1759402423940,10.76028222,225.27,225.25,7.2]
[1759402424141,7.68,225.27,225.25,7.2]
[1759402424840,1.10921325,225.29,225.21,1.36250702]
[1759402425045,3.08028611,225.28,225.22,7.2]
[1759402425346,1.10920893,225.29,225.22,7.2]
[1759402425547,3.07990155,225.28,225.22,7.2]
[1759402425742,1.10920893,225.29,225.22,7.2]
[1759402425943,3.07990083,225.28,225.22,7.2]
[1759402426142,1.10920893,225.29,225.23,1.36250702]
[1759402426452,3.0795182,225.28,225.24,7.2]
[1759402426750,4.18872713,225.3,225.24,7.2]
[1759402426954,11.86872713,225.29,225.24,7.2]
[1759402427247,2.75547454,225.36,225.27,8.56250702]
[1759402427440,4.18747441,225.35,225.29,1.36250702]
[1759402427642,4.18747441,225.34,225.3,7.2]
[1759402427946,3.07848088,225.33,225.32,7.2]
[1759402428148,4.18747441,225.34,225.32,7.2]
[1759402428349,3.07848088,225.33,225.32,7.2]
[1759402428551,4.18747441,225.34,225.32,7.2]
[1759402428750,3.07848088,225.35,225.32,7.2]
[1759402428952,10.75848088,225.35,225.32,7.2]
[1759402429152,7.68,225.35,225.32,7.2]
[1759402429956,7.68,225.35,225.31,5.35480702]
[1759402430152,10.43547454,225.36,225.32,7.2]
[1759402430453,7.68,225.36,225.31,5.35480702]
[1759402430856,7.68,225.37,225.32,7.2]
[1759402431151,5.54441549,225.38,225.32,7.2]
[1759402431352,4.43553499,225.38,225.32,7.2]
[1759402432356,7.68,225.37,225.32,7.2]
[1759402432550,1.36250702,225.38,225.32,7.2]
[1759402432551,2.47138752,225.38,225.32,7.2]
[1759402432748,7.68,225.37,225.32,7.2]
[1759402432953,2.47138752,225.38,225.32,7.2]
[1759402433153,7.68,225.37,225.32,7.2]
[1759402433456,2.47138752,225.38,225.32,7.2]
[1759402433756,7.68,225.37,225.32,7.2]
[1759402433957,7.8,225.37,225.32,7.2]
[1759402434359,4.43553499,225.38,225.32,7.2]
[1759402434659,1.36250702,225.38,225.32,7.2]
[1759402434953,7.8,225.37,225.32,7.2]
[1759402435157,9.16250702,225.38,225.32,7.75]
[1759402435358,12.23553499,225.38,225.32,7.75]
[1759402437060,9.16250702,225.38,225.32,7.75]
[1759402441061,7.8,225.38,225.34,7.75]
[1759402441261,7.8,225.38,225.33,3.9921]
[1759402441562,3.06455137,225.39,225.34,7.75]
[1759402441761,7.8,225.38,225.34,7.75]
[1759402442157,113.01350702,225.4,225.34,7.75]
[1759402442362,1.36250702,225.4,225.34,11.7418]
[1759402442665,7.8,225.41,225.34,11.7418]
[1759402443564,11.7908,225.41,225.34,11.7418]
[1759402444463,7.8,225.39,225.32,3.9922]
[1759402444658,7.8,225.39,225.3,7.75]
[1759402444659,1.36250702,225.36,225.3,7.75]
[1759402444864,9.16250702,225.33,225.26,7.75]
[1759402445465,13.15470702,225.33,225.26,11.7432]
[1759402451875,95.91470702,225.33,225.26,11.7432]
[1759402454376,94.5522,225.33,225.26,11.7432]
[1759402455278,7.8,225.3,225.19,7.75]
[1759402455479,7.8,225.3,225.23,7.75]
[1759402455679,9.16250702,225.3,225.23,7.75]
[1759402455876,3.993,225.28,225.23,7.75]
[1759402456074,7.8,225.27,225.23,7.75]
[1759402456476,3.993,225.28,225.23,7.75]
[1759402456877,7.8,225.27,225.23,7.75]
[1759402457277,3.993,225.28,225.23,7.75]
[1759402457478,7.8,225.27,225.23,7.75]
[1759402457676,3.993,225.28,225.23,7.75]
[1759402458381,7.8,225.27,225.23,7.75]
[1759402458679,7.8,225.26,225.23,7.75]
[1759402459083,7.8,225.26,225.22,3.9939]
[1759402459481,107.64,225.29,225.24,7.75]
[1759402459680,115.44,225.29,225.23,3.9937]
[1759402459885,107.64,225.29,225.23,3.9937]
[1759402460084,107.64,225.29,225.24,3.9936]
[1759402460085,115.44,225.29,225.24,3.9936]
[1759402460483,7.8,225.29,225.25,7.75]
[1759402461090,109.00250702,225.3,225.25,7.75]
[1759402461787,7.8,225.29,225.25,7.75]
[1759402462189,109.00250702,225.3,225.25,7.75]
[1759402462389,1.36250702,225.3,225.25,7.75]
[1759402462584,76.66250702,225.3,225.25,7.75]
[1759402462785,7.14,225.29,225.25,7.75]
[1759402462985,1.36250702,225.3,225.25,7.75]
[1759402463382,7.14,225.29,225.24,3.9936]
[1759402463788,7.14,225.29,225.25,7.89]
[1759402463984,7.14,225.29,225.26,7.59]
[1759402464192,11.36451401,225.32,225.26,7.59]
[1759402465696,11.36451401,225.32,225.26,11.5832]
[1759402466391,11.36451401,225.32,225.27,3.993]
[1759402466592,11.36451401,225.32,225.28,7.59]
[1759402466895,1.10920108,225.32,225.28,7.59]
[1759402467096,7.21,225.31,225.28,7.59]
[1759402467597,3.04630895,225.32,225.29,7.59]
[1759402467796,11.36548257,225.34,225.28,12.94530702]
[1759402468299,8.14748257,225.34,225.28,3.9928]
[1759402468498,11.202,225.34,225.28,11.5828]
[1759402468699,7.21,225.32,225.29,7.59]
[1759402475697,11.36541686,225.33,225.29,3.9926]
[1759402475896,7.21,225.33,225.29,3.9926]
[1759402476099,7.21,225.33,225.3,7.59]
[1759402476402,7.21,225.34,225.3,7.59]
[1759402476806,7.21,225.34,225.29,3.9926]
[1759402477109,7.21,225.34,225.3,7.59]
[1759402477402,7.21,225.34,225.31,3.9924]
[1759402477705,11.2013,225.38,225.28,7.59]
[1759402477905,4.15614753,225.37,225.28,7.59]
[1759402478406,11.2013,225.38,225.28,7.59]
[1759402478606,11.2013,225.38,225.32,3.9922]
[1759402480505,7.21,225.38,225.32,3.9922]
[1759402480706,11.36597035,225.39,225.33,7.59]
[1759402481106,15.35707035,225.39,225.33,7.59]
[1759402481308,4.15597035,225.38,225.33,7.59]
[1759402481510,3.9911,225.39,225.33,7.59]
[1759402481704,7.21,225.38,225.33,7.59]
[1759402482013,8.14707035,225.39,225.33,7.59]
[1759402482310,3.9911,225.39,225.33,7.59]
[1759402482511,7.21,225.38,225.33,7.59]
[1759402483004,4.15597035,225.38,225.33,7.59]
[1759402483203,3.9911,225.39,225.33,7.59]
[1759402484106,7.21,225.38,225.33,7.59]
[1759402484407,7.21,225.37,225.3,3.9925]
[1759402484801,7.21,225.37,225.31,7.59]
[1759402485207,3.9917,225.35,225.31,7.59]
[1759402485405,7.21,225.34,225.28,11.5829]
[1759402486009,7.21,225.35,225.29,11.5827]
[1759402490812,7.21,225.35,225.31,7.59]
[1759402491018,7.21,225.35,225.3,3.9925]
[1759402491214,4.15596,225.36,225.31,7.59]
[1759402491517,3.04696549,225.36,225.31,7.59]
[1759402491915,7.21,225.35,225.31,7.59]
[1759402492116,4.15596,225.36,225.31,7.59]
[1759402492315,3.9914,225.37,225.31,7.59]
[1759402492514,3.9917,225.36,225.31,7.59]
[1759402493718,7.21,225.35,225.31,7.59]
[1759402493908,7.64,225.35,225.31,7.59]
[1759402494512,3.9917,225.36,225.31,7.59]
[1759402494708,7.64,225.35,225.31,7.59]
[1759402495117,3.9917,225.36,225.31,7.59]
[1759402495418,7.64,225.35,225.31,7.59]
[1759402495618,3.9917,225.36,225.31,7.59]
[1759402496020,7.64,225.35,225.31,7.59]
[1759402496421,3.9917,225.36,225.31,7.59]
[1759402497718,7.64,225.35,225.31,7.59]
[1759402497914,3.9917,225.36,225.31,7.59]
[1759402498118,7.64,225.35,225.31,7.59]
[1759402498324,10.68775464,225.35,225.31,7.59]
[1759402498519,3.9917,225.36,225.31,7.59]
[1759402498719,11.6317,225.36,225.3,11.1725]
[1759402499019,64.22946301,225.32,225.21,7.18]
[1759402499324,11.79674002,225.31,225.21,7.18]
[1759402499520,2.12646301,225.32,225.21,7.18]
[1759402499521,7.64,225.29,225.21,7.18]
[1759402499817,11.79674002,225.29,225.21,7.18]
[1759402500024,3.04777129,225.28,225.21,7.18]
[1759402500324,7.04087129,225.28,225.21,11.1741]
[1759402501221,11.6333,225.27,225.21,7.18]
[1759402501424,7.64,225.25,225.21,7.18]
[1759402501624,7.64,225.25,225.18,7.18]
[1759402502725,3.9938,225.24,225.18,7.18]
[1759402505525,7.64,225.25,225.19,7.18]
[1759402505730,10.75046345,225.25,225.19,7.18]
[1759402505930,7.64,225.25,225.19,7.18]
[1759402506830,11.6336,225.25,225.19,7.18]
[1759402514030,3.9939,225.23,225.19,7.18]
[1759402514236,7.64,225.22,225.16,11.175]
[1759402514536,7.64,225.22,225.16,7.18]
[1759402515637,7.64,225.2,225.16,7.18]
[1759402515836,7.64,225.2,225.13,7.18]
[1759402516637,7.64,225.2,225.14,3.9953]
[1759402516837,7.64,225.2,225.15,7.18]
[1759402517033,7.64,225.2,225.14,3.9953]
[1759402517238,7.64,225.2,225.15,7.18]
[1759402517434,7.64,225.2,225.14,3.9953]
[1759402517738,7.64,225.2,225.14,11.1753]
[1759402518338,11.6345,225.2,225.14,11.1753]
[1759402518540,11.6345,225.2,225.14,7.18]
[1759402522542,11.6345,225.2,225.14,11.1753]
[1759402522837,7.64,225.2,225.14,7.18]
[1759402523140,7.64,225.2,225.16,3.995]
[1759402523542,7.64,225.2,225.17,7.65]
[1759402524139,7.32,225.25,225.17,7.65]
[1759402524442,10.4278125,225.25,225.17,7.65]
[1759402525543,3.9942,225.22,225.17,7.65]
[1759402526344,7.32,225.21,225.16,3.995]
[1759402526542,7.32,225.21,225.17,7.22]
[1759402528242,3.9942,225.22,225.17,7.22]
[1759402528545,7.32,225.21,225.17,7.22]
[1759402528844,3.9942,225.22,225.17,7.22]
[1759402529045,7.32,225.2,225.14,11.2154]
[1759402530243,1.36270601,225.21,225.14,11.2154]
[1759402530442,7.32,225.2,225.14,11.2154]
[1759402530646,7.32,225.2,225.12,5.2053348]
[1759402530647,7.32,225.18,225.12,9.2011348]
[1759402531239,7.32,225.18,225.13,7.22]
[1759402531644,7.32,225.18,225.13,3.9955]
[1759402532138,7.32,225.17,225.12,3.84262879]
[1759402532342,7.32,225.17,225.13,7.22]
[1759402532737,7.32,225.17,225.12,3.84262879]
[1759402533137,7.32,225.17,225.13,7.22]
[1759402533340,3.9949,225.18,225.13,7.22]
[1759402533536,1.36270601,225.15,225.08,7.22]
[1759402533738,7.32,225.14,225.08,7.22]
[1759402536350,7.32,225.14,225.05,3.997]
[1759402536552,8.68270601,225.14,225.06,7.22]
[1759402537348,7.32,225.12,225.06,11.2168]
[1759402538854,7.32,225.1,225.03,3.9973]
[1759402539052,8.68270601,225.1,225.03,3.9973]
[1759402539551,12.67900601,225.1,225.03,3.9973]
[1759402541755,7.32,225.1,225.04,11.2171]
[1759402544463,7.32,225.1,225.04,12.57980601]
[1759402547266,8.68270601,225.13,225.06,11.2169]
[1759402547454,7.32,225.13,225.06,12.57960601]
[1759402547968,3.9958,225.13,225.06,12.57960601]
[1759402548266,7.32,225.12,225.06,12.57960601]
[1759402550264,11.3153,225.15,225.09,7.22]
[1759402552660,7.32,225.14,225.06,1.36270601]
[1759402553262,7.32,225.12,225.04,8.58270601]
[1759402554264,7.86,225.1,225.04,11.2172]
[1759402556369,13.21830601,225.13,225.06,7.38]
[1759402556566,11.8556,225.13,225.06,8.74270601]
[1759402557164,3.9959,225.12,225.06,8.74270601]
[1759402557565,7.86,225.11,225.06,8.74270601]
[1759402557862,3.9959,225.12,225.06,1.36270601]
[1759402558061,11.8559,225.12,225.06,1.36270601]
[1759402558466,11.8559,225.12,225.05,11.3769]
[1759402560465,3.9961,225.11,225.05,7.38]
[1759402562466,3.9961,225.11,225.05,11.3769]
[1759402566272,11.8561,225.11,225.05,7.38]
[1759402573380,3.12978271,225.1,225.04,5.35980601]
[1759402573580,11.8561,225.11,225.05,7.38]
[1759402573780,7.86,225.09,225.04,5.35980601]
[1759402574080,7.86,225.09,225.05,7.38]
[1759402574380,7.86,225.09,225.04,5.35980601]
[1759402574673,7.86,225.09,225.05,7.38]
[1759402574877,7.86,225.09,225.04,5.35980601]
[1759402575478,7.86,225.09,225.05,7.38]
[1759402575878,7.86,225.09,225.04,5.35980601]
[1759402576075,7.86,225.09,225.05,7.38]
[1759402576279,7.86,225.09,225.04,5.35980601]
[1759402576475,10.98978271,225.09,225.05,7.38]
[1759402576676,7.86,225.09,225.05,7.38]
[1759402576879,7.86,225.09,225.04,5.35980601]
[1759402577076,10.99317581,225.09,225.05,7.38]
[1759402577282,7.86,225.09,225.04,5.35980601]
[1759402577677,7.86,225.09,225.05,7.38]
[1759402577878,7.86,225.09,225.04,5.35980601]
[1759402578079,7.86,225.09,225.05,7.38]
[1759402578477,7.86,225.09,225.04,5.35980601]
[1759402579382,3.13682216,225.08,225.04,5.35980601]
[1759402579580,7.86,225.09,225.04,5.35980601]
[1759402579778,3.13682216,225.08,225.05,7.38]
[1759402580083,1.11016428,225.1,225.04,5.35980601]
[1759402580282,10.99687582,225.09,225.05,7.38]
[1759402580482,10.99687582,225.08,225.04,5.35980601]
[1759402580673,7.86,225.08,225.04,5.35980601]
[1759402580879,7.86,225.08,225.05,7.38]
[1759402581183,7.86,225.08,225.04,5.35980601]
[1759402581384,7.86,225.08,225.05,7.38]
[1759402581985,7.86,225.08,225.04,5.35980601]
[1759402582576,7.86,225.08,225.05,7.29]
[1759402582781,7.86,225.08,225.04,5.35980601]
[1759402583281,7.86,225.08,225.05,7.29]
[1759402583484,7.86,225.08,225.04,5.35980601]
[1759402583783,7.82,225.1,225.04,5.35980601]
[1759402583983,7.58,225.08,225.05,7.48]
[1759402584984,3.9961,225.11,225.05,11.4769]
[1759402585184,4.24956895,225.1,225.06,7.48]
[1759402585382,3.13944353,225.09,225.06,7.48]
[1759402585583,3.13944353,225.08,225.05,3.9969]
[1759402585779,3.9961,225.11,225.05,3.9969]
[1759402586082,11.82953456,225.1,225.06,7.48]
[1759402586284,3.13940914,225.09,225.05,3.9969]
[1759402586476,3.13940914,225.08,225.06,7.48]
[1759402586678,7.58,225.1,225.05,3.9969]
[1759402586880,7.58,225.08,225.06,7.48]
[1759402588185,7.58,225.12,225.06,7.48]
[1759402588388,7.58,225.12,225.04,7.48]
[1759402588389,7.58,225.1,225.04,7.48]
[1759402588582,7.58,225.08,225.04,7.48]
[1759402588782,7.58,225.06,225.04,7.48]
[1759402594688,1.11020592,225.09,225.01,3.9977]
[1759402594889,11.88924276,225.08,225.01,11.4777]
[1759402595191,7.58,225.06,224.98,3.9982]
[1759402595392,7.58,225.04,224.98,3.9982]
[1759402595687,10.77998009,225.03,224.99,7.48]
[1759402595890,7.58,225.03,224.98,3.9982]
[1759402596285,7.58,225.03,225.01,7.48]
[1759402596685,3.9968,225.07,225.01,7.48]
[1759402596885,3.9968,225.07,225.0,3.9979]
[1759402596886,7.58,225.05,225.0,3.9979]
[1759402597089,3.19965294,225.04,225.01,3.9976]
[1759402597289,1.11035929,225.06,224.97,7.48]
[1759402597489,3.1994484,225.05,224.99,7.48]
[1759402597689,3.1994484,225.04,224.99,7.48]
[1759402597885,7.58,225.07,224.99,7.48]
[1759402598095,4.30980769,225.06,224.99,7.48]
[1759402598288,3.1994484,225.05,224.99,7.48]
[1759402598488,3.1994484,225.04,224.99,7.48]
[1759402598784,8.69035929,225.06,225.02,7.48]
[1759402598981,3.19901947,225.05,225.02,7.48]
[1759402599186,3.19901947,225.04,225.02,7.48]
[1759402599389,7.58,225.05,225.02,7.48]
[1759402599591,3.19856478,225.04,225.02,7.48]
[1759402599791,7.58,225.05,225.02,7.48]
[1759402600091,3.19856487,225.04,225.02,7.48]
[1759402600290,7.58,225.05,225.02,7.48]
[1759402600491,3.19816729,225.04,225.02,7.48]
[1759402600691,7.58,225.05,225.02,7.48]
[1759402600892,3.19816729,225.04,225.02,7.48]
[1759402601094,7.58,225.07,225.01,3.9976]
[1759402601295,3.21751699,225.06,225.01,3.9976]
[1759402601493,3.21751699,225.05,225.01,3.9976]
[1759402601693,7.58,225.03,225.01,3.9976]
[1759402602994,7.58,225.06,225.01,3.9976]
[1759402603194,3.21724978,225.05,225.01,3.9976]
[1759402603395,7.58,225.03,225.01,3.9976]
[1759402603693,7.58,225.03,224.99,11.478]
[1759402603896,7.58,225.06,225.0,7.48]
[1759402604095,3.21707377,225.05,225.0,7.48]
[1759402604296,7.58,225.03,225.0,7.48]
[1759402604698,1.1103478,225.06,225.0,7.48]
[1759402604892,3.21690986,225.05,225.0,7.48]
[1759402605091,7.58,225.03,224.97,3.9984]
[1759402605288,7.58,225.01,224.97,11.4784]
[1759402605487,7.58,225.01,224.98,7.48]
[1759402608196,7.58,225.01,224.99,3.9981]
[1759402608395,11.90475747,225.06,225.0,7.48]
[1759402608596,3.21444384,225.05,224.97,7.48]
[1759402608797,7.58,225.06,224.97,7.48]
[1759402608999,3.21449245,225.05,224.97,7.48]
[1759402609189,7.58,225.06,224.97,7.48]
[1759402609496,3.21443491,225.05,224.97,7.48]
[1759402609696,7.58,225.03,225.0,11.4778]
[1759402610093,7.58,225.03,225.0,3.9978]
[1759402610294,7.58,225.03,225.01,7.48]
[1759402611192,3.21429416,225.06,225.01,7.48]
[1759402611392,7.58,225.04,225.01,7.48]
[1759402611588,7.58,225.06,225.01,7.48]
[1759402611889,7.58,225.04,225.01,7.48]
[1759402612088,7.58,225.04,225.0,3.9978]
[1759402612294,7.58,225.04,224.96,2.13119185]
[1759402612295,1.11029298,225.07,225.01,11.4776]
[1759402612497,10.79418646,225.06,225.01,3.9976]
[1759402612800,10.79418646,225.05,225.02,7.48]
[1759402613002,7.58,225.05,225.02,7.48]
[1759402613799,7.58,225.05,225.01,3.9976]
[1759402614000,7.58,225.05,225.02,7.79]
[1759402614898,1.11030528,225.09,225.02,7.79]
[1759402615098,4.32455832,225.08,225.02,7.79]
[1759402615303,3.21425304,225.07,225.02,7.79]
[1759402615600,7.14,225.05,225.02,7.79]
[1759402617006,1.11030528,225.08,225.02,11.7874]
[1759402617298,3.21437066,225.07,225.03,7.79]
[1759402617498,3.21437066,225.06,225.03,7.79]
[1759402617698,3.9958,225.12,224.99,2.13119185]
[1759402617699,3.9958,225.12,225.05,7.79]
[1759402617905,11.46395511,225.11,225.05,7.79]
[1759402618104,4.32395511,225.1,225.04,11.7872]
[1759402618404,3.2138295,225.09,225.04,11.7872]
[1759402618605,10.3538295,225.08,225.04,3.9972]
[1759402618806,7.14,225.08,225.04,3.9972]
[1759402619104,7.14,225.08,225.05,7.79]
[1759402619505,7.14,225.08,225.04,3.9972]
[1759402619706,7.14,225.08,225.05,7.79]
[1759402619906,7.14,225.08,225.04,3.9972]
[1759402620106,7.14,225.08,225.05,7.79]
[1759402620308,1.11015804,225.11,225.05,7.79]
[1759402620609,3.21387167,225.1,225.05,7.79]
[1759402620805,3.21387167,225.09,225.04,3.9972]
[1759402621108,10.35387167,225.08,225.05,7.79]
[1759402621298,7.14,225.08,225.05,7.79]
[1759402621503,7.14,225.08,225.04,3.9972]
[1759402622006,8.25015804,225.11,225.05,7.79]
[1759402622209,3.21254178,225.1,225.04,11.7872]
[1759402622502,3.21254178,225.09,225.02,7.79]
[1759402622710,7.14,225.12,225.05,7.79]
[1759402622910,3.2127455,225.11,225.05,7.79]
[1759402623111,7.14,225.09,225.05,7.79]
[1759402623306,7.14,225.09,225.04,3.9971]
[1759402623512,7.14,225.09,225.05,7.79]
[1759402626316,8.25010423,225.11,225.05,7.79]
[1759402626517,7.14,225.09,225.05,7.79]
[1759402626714,1.11010423,225.11,225.05,7.79]
[1759402627011,7.14,225.09,225.02,3.9975]
[1759402627204,7.14,225.07,225.02,3.9975]
[1759402627410,7.14,225.09,225.02,3.9975]
[1759402627614,10.35187103,225.08,225.02,3.9975]
[1759402627815,7.14,225.08,225.02,3.9975]
[1759402630013,7.14,225.08,225.03,3.9973]
[1759402630618,3.9961,225.11,225.03,3.9973]
[1759402630820,10.35222149,225.1,225.03,3.9973]
[1759402631019,3.21222149,225.09,225.03,3.9973]
[1759402631316,7.14,225.07,225.03,11.7873]
[1759402631507,3.9961,225.11,225.03,11.7873]
[1759402631711,7.14,225.09,225.03,11.7873]
[1759402631909,7.14,225.07,225.04,7.79]
[1759402632716,6.12689185,225.13,225.0,2.13119185]
[1759402632918,11.48243784,225.12,225.05,7.79]
[1759402633222,4.34240531,225.11,225.05,7.79]
[1759402633526,3.23232217,225.1,225.01,7.79]
[1759402633716,3.23232217,225.09,225.01,7.79]
[1759402633914,7.14,225.11,225.01,7.79]
[1759402634112,3.23262653,225.1,225.01,7.79]
[1759402634426,3.23262653,225.09,225.01,7.79]
[1759402634622,7.14,225.11,225.06,3.9968]
[1759402634819,10.37243423,225.1,225.06,11.7868]
[1759402635026,7.14,225.11,225.06,11.7868]
[1759402635218,1.11008314,225.12,225.06,11.7868]
[1759402635219,10.37244107,225.1,225.06,11.7868]
[1759402635415,7.14,225.1,225.06,11.7868]
[1759402635620,1.11008314,225.12,225.06,11.7868]
[1759402635815,3.23227281,225.11,225.06,11.7868]
[1759402636020,7.14,225.09,225.06,11.7868]
[1759402637325,7.14,225.09,225.07,7.79]
[1759402641029,7.14,225.09,225.06,3.9968]
[1759402641231,7.14,225.09,225.06,11.7868]
[1759402643228,7.52,225.1,225.06,11.7868]
[1759402643435,7.52,225.12,225.06,11.7868]
[1759402643631,3.23081554,225.11,225.06,11.7868]
[1759402643936,7.3,225.12,225.06,11.7868]
[1759402644128,7.3,225.1,225.06,11.7868]
[1759402644331,7.3,225.12,225.06,11.7868]
[1759402644531,3.23097884,225.11,225.07,7.78]
[1759402644733,5.10532302,225.15,225.07,11.7766]
[1759402644930,4.34076904,225.14,225.07,11.7766]
[1759402645235,3.23074602,225.13,225.07,11.7766]
[1759402645435,7.3,225.11,225.07,11.7766]
[1759402645737,1.11002302,225.13,225.07,11.7766]
[1759402645927,3.23073243,225.12,225.07,11.7766]
[1759402646128,3.23073243,225.11,225.07,11.7766]
[1759402646333,7.3,225.1,225.07,11.7766]
[1759402647135,7.3,225.09,225.07,11.7766]
[1759402649933,3.9957,225.13,225.08,7.78]
[1759402650237,7.3,225.11,225.08,7.78]
[1759402650437,7.3,225.13,225.08,7.78]
[1759402650638,7.3,225.11,225.08,7.78]
[1759402650937,7.3,225.13,225.08,7.78]
[1759402651131,3.23091431,225.12,225.08,7.78]
[1759402651336,10.53091431,225.11,225.08,7.78]
[1759402651537,3.23091431,225.1,225.08,7.78]
[1759402651733,7.3,225.11,225.08,7.78]
[1759402651936,3.23146126,225.1,225.08,7.78]
[1759402652137,7.3,225.11,225.08,11.7764]
[1759402652435,3.23210582,225.1,225.08,11.7764]
[1759402652636,7.3,225.11,225.09,7.78]
[1759402652827,3.23210582,225.1,225.09,7.78]
[1759402653034,7.3,225.11,225.09,7.78]
[1759402653337,1.1100306,225.14,225.08,1.36348652]
[1759402653541,3.23257749,225.13,225.09,7.78]
[1759402653736,3.23257749,225.12,225.09,7.78]
[1759402653939,7.3,225.15,225.09,7.78]
[1759402654140,3.23257309,225.14,225.08,1.36348652]
[1759402654433,3.23257309,225.13,225.08,1.36348652]
[1759402654639,7.3,225.14,225.11,7.78]
[1759402654839,3.23226869,225.13,225.11,7.78]
[1759402655140,3.2326133,225.12,225.1,3.996]
[1759402655440,7.3,225.14,225.11,7.78]
[1759402655745,3.23230425,225.13,225.11,7.78]
[1759402656034,7.3,225.14,225.11,7.78]
[1759402656233,3.23295849,225.13,225.11,7.78]
[1759402656437,3.23295849,225.12,225.11,7.78]
[1759402660141,7.3,225.14,225.11,7.78]
[1759402660444,10.5335089,225.13,225.11,7.78]
[1759402660647,3.23329263,225.12,225.07,3.9966]
[1759402660946,7.3,225.14,225.07,3.9966]
[1759402661145,3.23406319,225.13,225.07,3.9966]
[1759402661451,7.3,225.11,225.08,7.78]
[1759402661746,7.3,225.11,225.07,3.9966]
[1759402662242,7.3,225.11,225.08,7.78]
[1759402663741,7.3,225.12,225.04,3.9971]
[1759402663942,1.36348652,225.13,224.99,62.1929]
[1759402663943,8.66348652,225.1,225.0,7.78]
[1759402664140,7.3,225.07,225.0,7.78]
[1759402664345,7.3,225.05,225.0,7.78]
[1759402664546,7.3,225.03,225.0,7.78]
[1759402664846,5.36048652,225.06,225.0,7.78]
[1759402665053,3.23474663,225.05,225.0,7.78]
[1759402665253,3.23474663,225.04,225.0,7.78]
[1759402665551,5.36048652,225.06,225.0,7.78]
[1759402665552,7.3,225.05,225.0,7.78]
[1759402665751,7.3,225.03,225.0,7.78]
[1759402665947,7.3,225.05,225.0,7.78]
[1759402666253,7.3,225.03,224.97,9.14348652]
[1759402666647,7.3,225.03,224.97,13.14188652]
[1759402667853,7.3,225.03,224.99,3.9981]
[1759402668553,7.3,225.03,225.0,7.78]
[1759402669052,7.3,225.03,224.99,3.9981]
[1759402669252,7.3,225.03,225.0,7.78]
[1759402670851,3.23041371,225.05,225.0,7.78]
[1759402671053,3.23041371,225.04,225.0,7.78]
[1759402671354,7.3,225.03,225.0,7.78]